bitfinex-derivatives/quotes_ETHF0:USTF0_20251013
["timestamp","ask_amount","ask_price","bid_price","bid_amount"]
[1760398240925,0.64039075,4252.6,4252.5,6.4128]
[1760398241126,0.42489075,4252.6,4252.5,6.4128]
[1760398241627,0.00201075,4252.6,4252.5,6.96099]
[1760398241926,0.42489075,4252.6,4252.5,6.96099]
[1760398242917,0.00201075,4252.6,4252.5,6.96099]
[1760398243124,0.00201075,4252.6,4252.5,10.16879]
[1760398243722,0.00201075,4252.6,4252.5,4.48879]
[1760398243918,0.00201075,4252.6,4252.5,4.0659]
[1760398244120,1.18509075,4252.6,4252.5,3.9406]
[1760398244428,1.18509075,4252.6,4252.5,9.3137]
[1760398244628,1.18509075,4252.6,4252.5,3.6347]
[1760398244822,1.18509075,4252.6,4252.5,9.0915]
[1760398245223,1.18509075,4252.6,4252.5,5.8837]
[1760398249026,1.18509075,4252.6,4252.5,5.8827]
[1760398250822,1.18509075,4252.6,4252.5,6.4162]
[1760398253333,0.42489075,4252.6,4252.5,6.96439]
[1760398253534,0.42489075,4252.6,4252.5,10.17219]
[1760398254236,0.00201075,4252.6,4252.5,10.17219]
[1760398254435,0.42489075,4252.6,4252.5,10.17219]
[1760398255230,0.42489075,4252.6,4252.5,9.7493]
[1760398255537,0.97539075,4252.6,4252.5,9.624]
[1760398255730,1.20039075,4252.6,4252.5,0.7372]
[1760398256034,1.20039075,4252.6,4252.5,6.4152]
[1760398256237,1.20039075,4252.6,4252.5,0.2037]
[1760398256439,1.20039075,4252.6,4252.5,5.8817]
[1760398258131,1.20039075,4252.6,4252.5,6.4152]
[1760398258527,0.1352,4252.5,4252.2,0.2177]
[1760398258731,0.7755,4252.3,4252.2,0.2177]
[1760398258925,0.7755,4252.3,4252.2,5.8957]
[1760398259337,1.19841,4252.3,4252.2,5.8957]
[1760398259638,1.19841,4252.3,4252.2,6.4292]
[1760398260036,1.19841,4252.3,4252.2,5.8957]
[1760398260842,1.19841,4252.3,4252.2,6.4292]
[1760398261043,1.19841,4252.3,4252.2,6.103]
[1760398261342,1.19841,4252.3,4252.2,5.678]
[1760398261538,1.19841,4252.3,4252.2,5.8957]
[1760398261944,1.19841,4252.3,4252.2,0.2177]
[1760398262139,1.19841,4252.3,4252.2,5.8947]
[1760398262538,0.42291,4252.3,4252.2,6.4282]
[1760398263040,0.4229,4252.5,4252.4,0.8479]
[1760398263230,0.7571,4252.5,4252.4,6.4292]
[1760398263432,0.9734,4252.5,4252.4,6.4292]
[1760398263741,0.4229,4252.5,4252.4,6.4292]
[1760398264842,0.4229,4252.5,4252.4,6.8521]
[1760398265943,0.00201075,4252.6,4252.5,1.29939]
[1760398266141,0.00201075,4252.6,4252.5,4.50719]
[1760398269146,0.00201075,4252.6,4252.5,10.18419]
[1760398269343,0.00201075,4252.6,4252.5,4.50719]
[1760398269542,0.97539075,4252.6,4252.5,3.959]
[1760398269743,1.20039075,4252.6,4252.5,3.959]
[1760398270046,1.20039075,4252.6,4252.5,9.3098]
[1760398270237,1.20039075,4252.6,4252.5,3.6328]
[1760398270541,0.2163,4252.0,4251.9,3.959]
[1760398270745,0.5505,4252.0,4251.9,9.636]
[1760398271042,0.97344,4252.0,4251.9,9.636]
[1760398271243,0.97344,4252.0,4251.9,9.637]
[1760398271745,0.42294,4252.0,4251.9,9.637]
[1760398272643,0.42489075,4252.6,4252.5,0.7512]
[1760398272839,1.20039075,4252.6,4252.5,6.4282]
[1760398273042,1.20039075,4252.6,4252.5,0.2177]
[1760398273239,0.7755,4252.2,4252.1,0.7512]
[1760398273445,1.19842,4252.2,4252.1,6.4302]
[1760398277750,1.19842,4252.2,4252.1,0.7512]
[1760398277949,1.19842,4252.2,4252.1,6.4312]
[1760398278250,1.19842,4252.2,4252.1,0.7512]
[1760398278444,1.19842,4252.2,4252.1,6.4302]
[1760398286053,0.654,4252.0,4251.9,0.223]
[1760398286349,1.17828,4251.6,4251.5,0.00204719]
[1760398286546,1.17837,4250.7,4250.6,3.4308]
[1760398286855,0.7553,4250.4,4250.3,0.223]
[1760398287148,0.4231,4250.4,4250.3,6.4424]
[1760398287542,0.4231,4250.4,4250.3,6.44521621]
[1760398289042,0.42309,4250.6,4250.4,0.4231]
[1760398289349,0.42303,4251.1,4251.0,0.8849]
[1760398289551,0.42302,4251.3,4251.0,6.5649]
[1760398289754,0.42297,4251.8,4251.6,1.18538]
[1760398290054,0.42297,4251.8,4251.7,6.4434]
[1760398290457,0.42295,4252.0,4251.9,0.7624]
[1760398290756,0.42295,4252.0,4251.9,6.4444]
[1760398291749,0.42293,4252.2,4252.1,0.4348]
[1760398291961,0.95713,4252.2,4252.1,6.4444]
[1760398292252,1.17823,4252.2,4252.1,6.1168]
[1760398292452,1.17823,4252.2,4252.1,6.4444]
[1760398293154,0.42293,4252.2,4252.1,6.4444]
[1760398293845,1.17823,4252.2,4252.1,0.4348]
[1760398294049,1.17823,4252.2,4252.1,6.1158]
[1760398294450,1.17823,4252.2,4252.1,0.4348]
[1760398294655,0.99079,4251.5,4251.4,3.7584]
[1760398294848,1.30099,4251.5,4251.4,9.6512]
[1760398295456,0.95719,4251.5,4251.4,9.6512]
[1760398295658,0.42299,4251.5,4251.4,9.6512]
[1760398295958,0.42299,4251.5,4251.4,9.6522]
[1760398296351,0.42299,4251.5,4251.4,3.9702]
[1760398296552,0.42299,4251.5,4251.4,9.6522]
[1760398296754,0.42299,4251.5,4251.4,3.9702]
[1760398296954,0.42299,4251.5,4251.4,9.6522]
[1760398297157,0.95719,4251.5,4251.4,9.6512]
[1760398297550,1.17829,4251.5,4251.4,9.6512]
[1760398297957,0.42299,4251.5,4251.4,9.6512]
[1760398299159,0.64699,4251.5,4251.4,9.6512]
[1760398299359,1.17829,4251.5,4251.4,3.9702]
[1760398299559,1.30099,4251.5,4251.4,9.6512]
[1760398299759,1.17829,4251.5,4251.4,9.6512]
[1760398300261,0.95719,4251.5,4251.4,9.6512]
[1760398300457,0.42299,4251.5,4251.4,9.6512]
[1760398301454,0.95719,4251.5,4251.4,3.9702]
[1760398301656,0.95719,4251.5,4251.4,9.6512]
[1760398302162,1.17829,4251.5,4251.4,6.4434]
[1760398302961,0.42299,4251.5,4251.4,6.4434]
[1760398303257,0.64701,4251.4,4251.3,0.7624]
[1760398303463,0.95721,4251.4,4251.3,6.86541]
[1760398304463,0.64701,4251.4,4251.3,6.86541]
[1760398304659,0.42301,4251.4,4251.3,6.86541]
[1760398305360,0.42293,4252.1,4252.0,0.4539]
[1760398305557,0.42293,4252.1,4252.0,6.5696]
[1760398306060,0.55264,4252.0,4251.9,3.2078]
[1760398306258,1.31184,4252.0,4251.9,3.2078]
[1760398306465,0.42294,4252.0,4251.9,10.08025]
[1760398306665,0.42294,4252.0,4251.9,9.6573]
[1760398307356,0.42294,4252.0,4251.9,10.08025]
[1760398308957,1.38921,4252.3,4251.9,10.08025]
[1760398308958,0.42291,4252.3,4252.2,0.7356]
[1760398309157,3.20981075,4252.6,4252.3,0.42291]
[1760398309357,4.19019075,4252.6,4252.5,0.7356]
[1760398309770,4.41319075,4252.6,4252.5,0.7356]
[1760398310064,1.20539075,4252.6,4252.5,0.7356]
[1760398311655,0.98239075,4252.6,4252.5,1.15849]
[1760398311862,0.00201075,4252.6,4252.5,1.28279]
[1760398313361,0.55951075,4252.6,4252.5,6.84049]
[1760398313561,0.00201075,4252.6,4252.5,6.96479]
[1760398320476,0.00201075,4252.6,4252.5,6.96279]
[1760398322877,1.20539075,4252.6,4252.5,0.7356]
[1760398323079,1.20539075,4252.6,4252.5,6.83649]
[1760398323372,1.00084,4252.0,4251.9,3.2078]
[1760398323577,1.33394,4252.0,4251.9,9.0937]
[1760398323774,1.33394,4252.0,4251.9,9.2999]
[1760398324478,0.98044,4252.0,4251.9,9.6234]
[1760398325771,0.42294,4252.1,4251.9,9.6234]
[1760398325976,0.42294,4252.1,4252.0,0.5352]
[1760398326268,0.64734,4252.1,4252.0,0.8587]
[1760398326479,1.20344,4252.1,4252.0,0.4121]
[1760398326776,1.20344,4252.1,4252.0,6.0911]
[1760398327170,1.20344,4252.1,4252.0,5.8849]
[1760398327375,1.20347,4251.7,4251.6,0.2059]
[1760398327771,1.33399,4251.5,4251.4,3.4137]
[1760398328076,1.33399,4251.5,4251.4,9.0937]
[1760398328669,0.42304,4251.0,4250.9,3.7372]
[1760398328871,1.20354,4251.0,4250.9,9.6224]
[1760398329077,1.33404,4251.0,4250.9,9.6224]
[1760398329577,1.20347,4251.7,4251.6,0.7356]
[1760398329778,0.98047,4251.7,4251.6,6.4156]
[1760398329976,1.20347,4251.7,4251.6,6.4156]
[1760398330176,1.20347,4251.7,4251.6,6.0921]
[1760398330774,0.42295,4252.0,4251.9,0.7356]
[1760398330975,0.42295,4252.0,4251.9,6.4156]
[1760398331478,1.33395,4252.0,4251.9,6.4156]
[1760398331673,0.75602,4252.3,4252.2,0.7356]
[1760398331877,0.75602,4252.3,4252.2,6.4156]
[1760398332372,1.20342,4252.3,4252.2,0.4121]
[1760398332577,1.20342,4252.3,4252.2,5.68]
[1760398332774,1.20342,4252.3,4252.2,5.8859]
[1760398335776,0.1305,4252.5,4252.2,6.4187]
[1760398335975,0.83520182,4254.5,4254.1,0.74934]
[1760398336173,0.2079,4254.9,4254.5,0.1325]
[1760398336374,1.12861,4255.5,4254.5,0.3266]
[1760398336375,0.84499,4254.6,4254.5,0.3266]
[1760398336574,0.84504,4254.1,4254.0,0.8894]
[1760398336880,0.4223,4253.7,4253.6,0.5386]
[1760398337079,0.4223,4253.7,4253.6,0.54076027]
[1760398337485,0.21070767,4254.1,4254.0,0.5628]
[1760398337692,0.21070767,4254.1,4254.0,0.8894]
[1760398338073,0.00280767,4254.1,4254.0,0.8894]
[1760398339385,0.21070767,4254.1,4254.0,0.8894]
[1760398340388,0.00280767,4254.1,4254.0,0.8894]
[1760398341482,0.21070767,4254.1,4254.0,6.5884]
[1760398342687,0.84507,4253.8,4253.7,6.2376]
[1760398342990,0.7463,4253.7,4253.6,3.74856027]
[1760398343188,0.4223,4253.7,4253.6,3.74856027]
[1760398343386,0.4223,4253.7,4253.6,3.96686027]
[1760398345586,0.2079,4253.7,4253.6,3.96686027]
[1760398347088,0.2079,4253.7,4253.6,3.64026027]
[1760398347489,0.42277,4253.8,4253.6,4.06304027]
[1760398347689,0.42277,4253.8,4253.7,0.7569]
[1760398347690,0.63067,4253.8,4253.7,0.7569]
[1760398349389,0.00280767,4254.1,4254.0,0.6711]
[1760398349595,0.42554767,4254.1,4254.0,7.00815]
[1760398349990,0.00280767,4254.1,4254.0,7.00815]
[1760398350494,0.42265,4255.0,4254.9,0.42266]
[1760398350796,0.84491,4255.4,4255.3,0.7569]
[1760398351496,0.84659001,4255.4,4255.3,0.7569]
[1760398351995,1.17059001,4255.4,4255.3,0.5386]
[1760398352397,0.84659001,4255.4,4255.3,0.7569]
[1760398353998,0.42429001,4255.4,4255.3,0.7569]
[1760398354295,1.17059001,4255.4,4255.3,0.7569]
[1760398354689,0.84659001,4255.4,4255.3,0.7569]
[1760398355301,0.63219001,4255.4,4255.3,0.7569]
[1760398355595,0.42429001,4255.4,4255.3,0.7569]
[1760398355792,0.63219001,4255.4,4255.3,0.7569]
[1760398357095,0.42429001,4255.4,4255.3,0.7569]
[1760398358197,0.63219001,4255.4,4255.3,0.7569]
[1760398358394,1.17059001,4255.4,4255.3,0.3266]
[1760398360302,0.84499,4254.6,4254.5,3.7706]
[1760398360495,1.16899,4254.6,4254.5,3.5523]
[1760398361002,1.16899,4254.6,4254.5,3.8789]
[1760398362291,0.42269,4254.6,4254.5,4.0972]
[1760398362491,0.42268,4254.8,4254.7,0.85297]
[1760398362695,0.42268,4254.8,4254.7,6.4499]
[1760398363001,0.63058,4254.8,4254.7,6.4499]
[1760398363202,0.63058,4254.8,4254.7,6.87258]
[1760398363503,0.63058,4254.8,4254.7,6.4499]
[1760398367106,0.85088,4254.8,4254.7,0.7569]
[1760398367402,1.17979,4254.6,4254.5,3.2078]
[1760398367601,1.17983,4254.2,4254.1,0.3056]
[1760398368002,0.85863,4254.2,4254.1,0.744]
[1760398368997,0.42273,4254.2,4254.1,0.744]
[1760398369200,0.62703,4254.2,4254.1,0.744]
[1760398369406,0.84223,4254.2,4254.1,6.436]
[1760398369908,0.84223,4254.2,4254.1,0.744]
[1760398371207,1.17053,4254.2,4254.1,0.5263]
[1760398371701,0.84228,4253.7,4253.6,0.78256027]
[1760398371902,1.17058,4253.7,4253.6,6.47556027]
[1760398372101,0.84228,4253.7,4253.6,6.47556027]
[1760398372501,0.84228,4253.7,4253.6,0.56576027]
[1760398372502,1.17058,4253.7,4253.6,0.56576027]
[1760398373310,0.84228,4253.7,4253.6,0.78256027]
[1760398375313,1.17058,4253.7,4253.6,0.78256027]
[1760398375614,1.17058,4253.7,4253.6,0.56576027]
[1760398377109,0.84228,4253.7,4253.6,0.78256027]
[1760398378317,1.17058,4253.7,4253.6,0.00216027]
[1760398378719,1.17058,4253.7,4253.6,0.56576027]
[1760398379719,0.84228,4253.7,4253.6,0.78256027]
[1760398380115,1.17058,4253.7,4253.6,0.78256027]
[1760398380317,0.84228,4253.7,4253.6,0.78256027]
[1760398380711,1.17058,4253.7,4253.6,0.34026027]
[1760398381017,1.17058,4253.7,4253.6,0.00216027]
[1760398382221,1.17058,4253.7,4253.6,0.56576027]
[1760398382614,0.84228,4253.7,4253.6,0.78256027]
[1760398383621,0.84228,4253.7,4252.5,3.2078]
[1760398383622,0.84238,4252.6,4252.5,3.2078]
[1760398383813,1.05714,4252.9,4252.0,3.2078]
[1760398383814,0.7478,4252.1,4252.0,3.2078]
[1760398384121,0.7478,4251.6,4251.5,3.2078]
[1760398384616,0.84251,4251.3,4251.2,6.4724]
[1760398384917,0.2043,4251.3,4251.2,6.89741048]
[1760398385120,0.84530669,4251.6,4251.5,0.9102]
[1760398385317,0.84530669,4251.6,4251.5,0.7804]
[1760398385318,1.17360669,4251.6,4251.5,0.7804]
[1760398385619,1.17360669,4251.6,4251.5,0.5636]
[1760398387322,1.17081,4251.3,4251.2,0.56559048]
[1760398388112,1.17081,4251.3,4251.2,0.00199048]
[1760398394020,0.4195,4250.1,4250.0,3.5631]
[1760398394218,0.84268,4249.6,4249.5,3.7799]
[1760398394617,1.17098,4249.6,4249.5,4.118]
[1760398394814,0.84271,4249.3,4249.2,0.2255]
[1760398395021,0.84271,4249.3,4249.2,0.56603379]
[1760398395524,1.17281,4249.3,4249.2,0.56603379]
[1760398396714,1.17617,4249.7,4249.6,0.3329]
[1760398396922,1.17621,4249.3,4249.2,0.00243379]
[1760398397523,1.17621,4249.3,4249.2,0.77693379]
[1760398397728,1.17621,4249.3,4249.2,1.20015379]
[1760398398219,1.17621,4249.3,4249.2,0.77693379]
[1760398398426,1.17621,4249.3,4249.2,0.00243379]
[1760398399524,0.42328,4248.6,4248.5,3.2078]
[1760398399823,1.17628,4248.6,4248.5,3.2078]
[1760398400721,1.17852611,4248.6,4248.5,3.20963944]
[1760398401325,1.17852611,4248.6,4248.5,0.00183944]
[1760398407126,6.87552611,4248.6,4248.5,0.00183944]
[1760398407624,1.17852611,4248.6,4248.5,0.00183944]
[1760398407826,6.87552611,4248.6,4248.5,0.00183944]
[1760398408224,1.17852611,4248.6,4248.5,0.00183944]
[1760398408426,6.87552611,4248.6,4248.5,0.00183944]
[1760398408824,1.17852611,4248.6,4248.5,0.00183944]
[1760398409024,6.87552611,4248.6,4248.5,0.00183944]
[1760398409221,1.17852611,4248.6,4248.5,0.00183944]
[1760398409529,0.42514611,4248.6,4248.5,1.33332944]
[1760398410026,0.00224611,4248.6,4248.5,1.33332944]
[1760398410533,0.00224611,4248.6,4248.5,4.54112944]
[1760398410826,3.2078,4249.5,4249.3,0.4416]
[1760398411026,0.42318,4249.6,4249.4,3.2078]
[1760398411227,0.213,4249.2,4249.0,0.55694]
[1760398411429,0.4229,4249.2,4249.1,0.7745]
[1760398411825,0.21179943,4249.2,4249.1,0.7745]
[1760398413425,0.00189943,4249.2,4249.1,0.7745]
[1760398414329,0.42315,4250.0,4249.9,0.3329]
[1760398414538,3.84079,4250.5,4250.4,0.7745]
[1760398415430,0.63502299,4250.5,4250.4,0.7745]
[1760398415630,0.00203299,4250.5,4250.4,0.7745]
[1760398416329,0.00203299,4250.5,4250.4,6.4765]
[1760398418729,0.21193299,4250.5,4250.4,0.7745]
[1760398418931,0.753,4250.3,4250.2,3.2078]
[1760398419631,0.753,4250.3,4250.2,3.7607]
[1760398419938,0.4231,4250.4,4250.2,3.9823]
[1760398420137,0.4231,4250.4,4250.3,0.7745]
[1760398420340,1.1761,4250.4,4250.3,0.5529]
[1760398420933,0.846,4250.4,4250.2,3.2078]
[1760398421236,0.753,4250.3,4250.2,3.2078]
[1760398425238,0.753,4250.3,4250.2,3.7558]
[1760398425536,0.753,4250.3,4249.7,5.699]
[1760398425537,0.4228,4249.8,4249.5,3.2078]
[1760398425736,1.16258,4249.6,4249.5,3.4215]
[1760398425934,0.42318,4249.6,4249.5,4.0846]
[1760398426740,3.33703299,4250.5,4249.8,0.7531]
[1760398426741,0.42316,4249.9,4249.8,0.7531]
[1760398426935,0.64226,4249.9,4249.8,0.7531]
[1760398428839,0.64226,4249.9,4249.8,6.4531]
[1760398429240,1.19466,4249.9,4249.8,0.7531]
[1760398429631,1.19466,4249.9,4249.8,0.5417]
[1760398431240,0.42316,4249.9,4249.8,1.18586]
[1760398432038,0.42315,4250.0,4249.9,0.42314]
[1760398432243,0.42315,4250.0,4249.9,1.18394]
[1760398437840,1.18605,4250.0,4249.9,0.7608]
[1760398438044,1.18605,4250.0,4249.9,1.18395]
[1760398438646,0.84815,4250.0,4249.9,1.18395]
[1760398439844,0.84815,4250.0,4249.9,6.87895]
[1760398440746,0.42313,4250.2,4250.1,1.18393]
[1760398440945,0.42512299,4250.5,4250.4,0.7608]
[1760398441245,0.42512299,4250.5,4250.4,6.4548]
[1760398441646,0.63562299,4250.5,4250.4,6.4548]
[1760398442943,0.63562299,4250.5,4250.4,6.8779]
[1760398443454,0.42512299,4250.5,4250.4,6.8779]
[1760398444054,1.18802299,4250.5,4250.4,0.5398]
[1760398444251,0.2105,4250.3,4250.2,0.74582]
[1760398444451,1.39569,4250.3,4249.8,3.2078]
[1760398444654,1.18605,4249.9,4249.8,3.7476]
[1760398444955,1.18605,4249.9,4249.8,9.4426]
[1760398445650,1.18605,4249.9,4249.8,3.2078]
[1760398445952,1.1861,4249.4,4249.3,8.9028]
[1760398446156,1.1861,4249.4,4249.3,3.2078]
[1760398446356,1.1861,4249.4,4249.3,3.4249]
[1760398446557,1.1861,4249.4,4249.3,3.7476]
[1760398446857,1.1861,4249.4,4249.3,3.2078]
[1760398447752,1.18615,4248.9,4248.8,3.2078]
[1760398448157,1.18618,4248.6,4248.5,0.00183944]
[1760398454973,1.18618,4248.6,4248.5,0.54163944]
[1760398455271,0.84828,4248.6,4248.5,0.89243944]
[1760398455863,1.15838,4248.6,4248.5,0.76263944]
[1760398456068,1.15838,4248.6,4248.5,0.00183944]
[1760398463779,0.42327,4248.8,4248.7,0.4246]
[1760398463971,0.42326,4248.8,4248.7,0.84787]
[1760398464469,0.3101,4249.2,4249.0,0.1282]
[1760398464676,0.42322,4249.3,4249.2,0.42322]
[1760398464974,0.42323,4249.2,4249.0,0.97604]
[1760398465170,0.63783,4249.2,4249.1,3.9675]
[1760398467076,1.15603,4249.2,4249.1,3.9675]
[1760398467473,0.84593,4249.2,4249.1,3.9675]
[1760398467674,0.63783,4249.2,4249.1,3.9675]
[1760398468977,0.84593,4249.2,4249.1,3.9675]
[1760398469177,1.15603,4249.2,4249.1,3.2078]
[1760398469379,1.15603,4249.2,4249.1,3.7488]
[1760398469585,1.15603,4249.2,4249.1,3.9675]
[1760398470276,0.84593,4249.2,4249.1,3.9675]
[1760398472677,0.42328,4248.6,4248.5,3.54373944]
[1760398472873,1.15608,4248.6,4248.5,9.57183944]
[1760398473075,1.15608,4248.6,4248.5,3.87883944]
[1760398473276,1.15608,4248.6,4248.5,0.00183944]
[1760398473973,1.15608,4248.6,4248.5,0.88973944]
[1760398474275,0.84598,4248.6,4248.5,0.88973944]
[1760398474980,0.42328,4248.6,4248.5,4.09753944]
[1760398475979,0.42328,4248.6,4248.5,9.79153944]
[1760398477282,0.42328,4248.6,4248.5,9.79053944]
[1760398480790,0.42328,4248.6,4248.5,7.00602944]
[1760398481488,0.42328,4248.6,4248.5,6.58273944]
[1760398483992,0.42328,4248.6,4248.5,9.79053944]
[1760398484387,0.42328,4248.6,4248.5,10.21382944]
[1760398485191,0.42328,4248.6,4248.5,9.79053944]
[1760398485493,0.64068,4248.6,4248.5,6.58273944]
[1760398485888,0.64068,4248.6,4248.5,0.88973944]
[1760398486090,0.64068,4248.6,4248.5,6.58073944]
[1760398487388,0.85638,4248.6,4248.5,6.57973944]
[1760398487589,1.19298,4248.6,4248.5,0.76153944]
[1760398487894,1.19298,4248.6,4248.5,6.45153944]
[1760398488093,0.85638,4248.6,4248.5,6.57613944]
[1760398489293,1.19298,4248.6,4248.5,6.57613944]
[1760398489794,0.85638,4248.6,4248.5,6.57613944]
[1760398490087,0.42328,4248.6,4248.5,6.57613944]
[1760398490892,1.17948,4248.6,4248.5,5.69183944]
[1760398491383,1.17948,4248.6,4248.5,6.23643944]
[1760398491586,1.17948,4248.6,4248.5,6.57103944]
[1760398491783,0.42328,4248.6,4248.5,6.57103944]
[1760398494898,0.42328,4248.6,4248.5,9.77883944]
[1760398497193,0.63218,4248.6,4248.5,9.77883944]
[1760398497598,0.42328,4248.6,4248.5,9.77883944]
[1760398500901,0.63218,4248.6,4248.5,4.08883944]
[1760398501101,0.63218,4248.6,4248.5,9.77683944]
[1760398501300,0.63218,4248.6,4248.5,4.08883944]
[1760398501497,1.17948,4248.6,4248.5,9.44223944]
[1760398501997,1.17948,4248.6,4248.5,6.23443944]
[1760398502303,1.17948,4248.6,4248.5,9.77683944]
[1760398503592,1.17948,4248.6,4248.5,6.56903944]
[1760398503798,1.17948,4248.6,4248.5,9.77683944]
[1760398504002,1.17948,4248.6,4248.5,3.75423944]
[1760398504198,1.17948,4248.6,4248.5,3.20963944]
[1760398504502,1.17948,4248.6,4248.5,0.00183944]
[1760398505000,0.42333,4248.1,4247.8,0.0235416]
[1760398505202,1.17955,4247.9,4247.8,0.0235416]
[1760398505596,1.17955,4247.9,4247.8,0.5681416]
[1760398505797,1.17955,4247.9,4247.8,0.0235416]
[1760398506000,1.17963,4247.1,4247.0,3.8806]
[1760398506199,1.18176395,4247.1,4247.0,9.57091545]
[1760398506397,1.18176395,4247.1,4247.0,9.78061545]
[1760398506601,0.85326395,4247.1,4247.0,9.78061545]
[1760398508302,0.42556395,4247.1,4247.0,9.78061545]
[1760398508705,0.63446395,4247.1,4247.0,9.78061545]
[1760398509403,1.18176395,4247.1,4247.0,9.78061545]
[1760398509905,0.85326395,4247.1,4247.0,9.78061545]
[1760398511197,1.18176395,4247.1,4247.0,0.00231545]
[1760398518405,1.19153,4246.1,4246.0,3.2078]
[1760398518906,0.86758,4245.6,4245.5,19.068]
[1760398519111,1.19158,4245.6,4245.5,24.76]
[1760398519505,1.19158,4245.6,4245.5,24.7627337]
[1760398519906,0.42358,4245.6,4245.5,24.7627337]
[1760398520310,4.30594516,4245.6,4245.5,17.40649175]
[1760398520614,0.42358,4245.7,4245.5,18.27709175]
[1760398520806,0.64901,4246.3,4246.2,0.7353]
[1760398521113,0.64901,4246.3,4246.2,3.9431]
[1760398521408,0.42356,4245.8,4245.7,3.7353]
[1760398521610,1.19156,4245.8,4245.7,3.9431]
[1760398521807,0.2255,4245.8,4245.7,3.9431]
[1760398522003,0.324,4246.3,4246.2,0.7353]
[1760398522004,0.444,4246.3,4246.2,0.7353]
[1760398522203,0.444,4246.3,4246.2,3.9431]
[1760398522401,0.86751,4246.3,4246.2,3.9431]
[1760398522602,0.4235,4246.4,4246.3,0.5275]
[1760398522810,0.8675,4246.4,4246.3,0.7353]
[1760398523013,1.1915,4246.4,4246.3,0.7353]
[1760398524911,0.8675,4246.4,4246.3,0.7353]
[1760398525609,1.1915,4246.4,4246.3,0.7353]
[1760398527905,1.25763916,4248.8,4247.0,0.2097]
[1760398527906,0.22763395,4247.1,4247.0,0.2097]
[1760398528113,0.86957395,4247.1,4247.0,0.8706]
[1760398528415,0.86957395,4247.1,4247.0,0.5275]
[1760398528416,1.19357395,4247.1,4247.0,0.5275]
[1760398528911,1.19357395,4247.1,4247.0,0.3178]
[1760398529115,1.19146,4246.8,4246.7,3.2078]
[1760398529319,1.19146,4246.8,4246.0,0.1353]
[1760398529320,0.444,4246.2,4246.1,0.95103]
[1760398529519,1.19152,4246.2,4246.1,0.95103]
[1760398529722,1.19152,4246.2,4246.1,1.15883]
[1760398530314,0.127,4246.0,4245.5,17.54179175]
[1760398530517,1.19158,4245.6,4245.5,17.40649175]
[1760398531822,1.19158,4245.6,4245.5,17.61619175]
[1760398532019,1.19158,4245.6,4245.5,17.40649175]
[1760398532423,1.19158,4245.6,4245.5,14.19869175]
[1760398532819,1.19158,4245.6,4245.5,13.65800175]
[1760398533023,1.19158,4245.6,4245.5,11.20780175]
[1760398533223,1.19158,4245.6,4245.5,9.79736175]
[1760398533425,45.06893733,4245.6,4245.5,9.06647175]
[1760398533624,45.06893733,4245.6,4245.5,7.61247175]
[1760398533825,45.06893733,4245.6,4245.5,6.25940175]
[1760398534426,50.77393733,4245.6,4245.5,6.25940175]
[1760398535225,50.77393733,4245.6,4245.5,5.78192175]
[1760398535732,50.77393733,4245.6,4245.5,5.28651175]
[1760398536032,50.77393733,4245.6,4245.5,3.54808175]
[1760398536232,50.77393733,4245.6,4245.5,2.97338175]
[1760398536436,50.77393733,4245.6,4245.5,2.33826175]
[1760398536627,50.77393733,4245.6,4245.5,1.24354175]
[1760398537029,50.77393733,4245.6,4245.5,0.09515175]
[1760398537331,50.77393733,4245.6,4245.5,1.75e-06]
[1760398539330,45.06893733,4245.6,4245.5,1.75e-06]
[1760398539524,50.77293733,4245.6,4245.5,1.75e-06]
[1760398540230,45.06893733,4245.6,4245.5,1.75e-06]
[1760398540433,50.77193733,4245.6,4245.5,1.75e-06]
[1760398542434,53.97973733,4245.6,4245.5,1.75e-06]
[1760398542628,4.39938,4245.6,4245.5,0.52750175]
[1760398542828,10.10238,4245.6,4245.5,1.75e-06]
[1760398543336,9.77838,4245.6,4245.5,1.75e-06]
[1760398544427,4.07538,4245.6,4245.5,1.75e-06]
[1760398544728,9.77738,4245.6,4245.5,1.75e-06]
[1760398545333,50.57738,4245.6,4245.5,1.75e-06]
[1760398547138,44.87538,4245.6,4245.5,1.75e-06]
[1760398547326,50.57738,4245.6,4245.5,1.75e-06]
[1760398547934,53.6311926,4245.6,4245.5,1.75e-06]
[1760398548133,53.6301926,4245.6,4245.5,1.75e-06]
[1760398548939,47.9291926,4245.6,4245.5,1.75e-06]
[1760398549138,53.6301926,4245.6,4245.5,1.75e-06]
[1760398552740,53.6291926,4245.6,4245.5,1.75e-06]
[1760398553129,47.9291926,4245.6,4245.5,1.75e-06]
[1760398553335,53.6291926,4245.6,4245.5,1.75e-06]
[1760398553743,47.9291926,4245.6,4245.5,1.75e-06]
[1760398553941,53.6301926,4245.6,4245.5,1.75e-06]
[1760398554940,47.9291926,4245.6,4245.5,1.75e-06]
[1760398555137,53.6301926,4245.6,4245.5,1.75e-06]
[1760398555535,47.9291926,4245.6,4245.5,1.75e-06]
[1760398555737,53.6301926,4245.6,4245.5,1.75e-06]
[1760398556137,47.9291926,4245.6,4245.5,1.75e-06]
[1760398556439,53.6291926,4245.6,4245.5,1.75e-06]
[1760398556648,0.4242,4244.1,4244.0,3.7602]
[1760398556851,0.7469,4244.1,4244.0,3.5412]
[1760398557141,1.17063,4244.1,4244.0,3.2078]
[1760398557344,1.17068,4243.6,4243.5,3.8955]
[1760398557544,0.74964462,4243.6,4243.5,4.10842923]
[1760398557844,0.42694462,4243.6,4243.5,4.10842923]
[1760398558235,0.00274462,4243.6,4243.5,4.10842923]
[1760398558640,0.85072462,4243.6,4243.5,4.10842923]
[1760398560043,0.42694462,4243.6,4243.5,4.10842923]
[1760398562440,0.42694462,4243.6,4243.5,0.00212923]
[1760398562441,0.74964462,4243.6,4243.5,0.00212923]
[1760398562642,6.45364462,4243.6,4243.5,0.00212923]
[1760398563343,3.24852541,4243.6,4243.5,4.09662923]
[1760398563537,3.632,4244.7,4244.6,0.219]